Cogmind - Beta 13 *** ADVENTURER MODE // 2024.06.01 @ 00:06:35 // Winter2019/RPGLIKE Player: Terra Result: Destroyed by S-10 Pest with Light Assault Rifle Performance ------------- Evolutions (0) 0 Regions Visited (2) 400 Robots Destroyed (5) 25 Value Destroyed (50) 50 Prototype IDs (0) 0 Alien Tech Used (0) 0 Bonus (0) 0 TOTAL SCORE: 475 Bonus ------- None Cogmind --------- Core Integrity 0/650 Matter 280/300 Energy 138/150 System Corruption 0% Temperature Cool (0) Movement Walking (190) Ox1 Location -10/Mines Parts ------- > --- POWER (1) -------- Light Angular Momentum Engine > --- PROPULSION (2) --- Carbon-fiber Leg Wheel > --- UTILITY (3) ------ Targeting Computer Shield Generator Shield Generator > --- WEAPON (2) ------- Light Assault Rifle Plasma Flamer > --- INVENTORY (2) ---- Protomatter-13 Flight Unit Peak State ------------ > --- POWER ------------ Light Angular Momentum Engine > --- PROPULSION ------- Carbon-fiber Leg Wheel > --- UTILITY ---------- Targeting Computer Shield Generator Shield Generator > --- WEAPON ----------- Light Assault Rifle Plasma Flamer > --- INVENTORY -------- Protomatter Flight Unit [Rating: 20] Favorites ----------- Power Light Ion Engine Engine Light Ion Engine Propulsion Flight Unit Leg Carbon-fiber Leg Wheel Wheel Flight Unit Flight Unit Utility Shield Generator Device Shield Generator Processor Targeting Computer Weapon Light Assault Rifle Ballistic Gun Light Assault Rifle Special Weapon Plasma Flamer Build | -11 -10 -10 ------- Run | Yrd Mat Min Slots Evolved 4 | . 4 . Power . | . . . Propulsion 1 | . 1 . Utility 2 | . 2 . Weapon 1 | . 1 . Parts Attached 15 | 3 6 6 Power 2 | 1 . 1 Engine 2 | 1 . 1 Core . | . . . Reactor . | . . . Propulsion 7 | 1 3 3 Treads . | . . . Leg 1 | . . 1 Wheel 3 | 1 . 2 Hover . | . . . Flight 3 | . 3 . Utility 3 | . 3 . Device 2 | . 2 . Storage . | . . . Processor 1 | . 1 . Hackware . | . . . Protection . | . . . Artifact . | . . . Weapon 3 | 1 . 2 Energy Gun . | . . . Energy Cannon . | . . . Ballistic Gun 2 | 1 . 1 Ballistic Cannon . | . . . Launcher . | . . . Special Weapon 1 | . . 1 Impact Weapon . | . . . Slashing Weapon . | . . . Piercing Weapon . | . . . Special Melee Weapon . | . . . Unidentified Prototypes . | . . . Parts Lost . | . . . Power . | . . . Propulsion . | . . . Utility . | . . . Weapon . | . . . Highest Loss Streak . | . . . To Critical Strikes . | . . . Average Slot Usage (%) 94 | . 90 96 Engine 15 | . 22 12 Leg 3 | . . 5 Wheel 8 | . 10 7 Flight 12 | . 13 12 Device 17 | . 1 25 Processor 14 | . 19 12 Ballistic Gun 18 | . 22 17 Special Weapon 2 | . . 3 Naked Turns . | . . . Heaviest Build 17 | 4 8 17 Greatest Support 20 | 10 10 20 Greatest Overweight (x) 1 | . . 1 Average Overweight (x) . | . . . Largest Inventory Capacity 2 | . 2 2 Average Capacity 1 | . . 2 Most Carried 2 | . 2 2 Average Carried 1 | . . 1 Final Capacity 2 | . 2 2 Final Carried 2 | . 2 2 Class Distribution -------------------- 94% | Mutant 5% | Scavenger-Mutant Dominant Class ---------------- Mutant | -10/Materials Mutant | -10/Mines Resources | -11 -10 -10 ----------- Run | Yrd Mat Min Matter Collected 469 | . 150 319 Remotely . | . . . Salvage Created 285 | . 75 210 Parts 11 | . 11 . Haulers Intercepted . | . . . Recyclers Shooed . | . . . Parts Field Recycled . | . . . Retrieved Matter . | . . . Parts Self-Destructed . | . . . Prevented . | . . . Kills | -11 -10 -10 ------- Run | Yrd Mat Min Combat Hostiles Destroyed 22 | . 5 17 Guns 22 | . 5 17 Classes Destroyed 2 | . 1 1 Swarmer 5 | . 5 . Assembled 17 | . . 17 Best Kill Streak 16 | . 3 16 Combat Bots Only 16 | . 3 16 Max Kills in Single Turn 1 | . 1 1 Gunslinging . | . . . Exploded . | . . . Melee . | . . . Uniques/NPCs Destroyed . | . . . Combat | -11 -10 -10 -------- Run | Yrd Mat Min Hostile Shots Fired 102 | . 36 66 Missed 23 | . 10 13 Damage Taken 809 | . 161 648 Core 652 | . 129 523 Absorbed by Shields 190 | . . 190 Redirected to Core 484 | . 82 402 Ignored by Resistances 289 | . 52 237 Core Remaining (%) 100 | 100 . . Volleys Fired 112 | . 29 83 Largest 2 | . 1 2 Hottest 40 | . 20 40 Shots Fired 139 | . 29 110 Gun 139 | . 29 110 Cannon . | . . . Launcher . | . . . Special . | . . . Kinetic 139 | . 29 110 Thermal . | . . . Explosive . | . . . Electromagnetic . | . . . Robot Hit Streak 49 | . 10 49 Robot Miss Streak 2 | . 2 1 Penetration Max . | . . . Secondary Targets 1 | . . 1 Max Gunslinging Chain 1 | . . 1 Shots Hit Robots 123 | . 24 99 Core Hits 60 | . 9 51 Critical Kills 1 | . . 1 Critical Parts Destroyed 2 | . 1 1 Critical Strikes 3 | . 1 2 Destroy 3 | . 1 2 Melee Attacks . | . . . Impact . | . . . Slashing . | . . . Piercing . | . . . Sneak Attacks . | . . . Combat Hostiles . | . . . Follow-up Attacks . | . . . Damage Inflicted 1008 | . 207 801 Guns 1008 | . 207 801 Cannons . | . . . Explosions . | . . . Melee . | . . . Ramming . | . . . Kinetic 1008 | . 207 801 Thermal . | . . . Explosive . | . . . Electromagnetic . | . . . Impact . | . . . Slashing . | . . . Piercing . | . . . Highest Corruption . | . . . Average Corruption . | . . . Corruption Purged . | . . . Corruption Blocked . | . . . Overload Shots . | . . . Overflow Damage . | . . . Projectiles . | . . . Explosions . | . . . Melee . | . . . Knockbacks . | . . . Impact . | . . . Kinetic . | . . . Secondary . | . . . Self-Inflicted Damage . | . . . Shots . | . . . Rammed . | . . . Targets Rammed . | . . . Kicked . | . . . Crushed . | . . . Highest Temperature 2 | . 2 . Average Temperature 1 | . 1 . Received Heat Transfer 211 | . . 211 Siege Activations . | . . . Robots Corrupted . | . . . Combat Hostiles . | . . . Parts Fried . | . . . Impact Corruptions . | . . . Robots Melted . | . . . Combat Hostiles . | . . . Parts Melted . | . . . Heat Transferred . | . . . Parts Sabotaged . | . . . Parts Stolen . | . . . Parts Stripped . | . . . Power Chain Reactions . | . . . Alert | -11 -10 -10 ------- Run | Yrd Mat Min Peak Influence 150 | . 150 49 Initial 49 | . . 49 Average 50 | . 69 44 Maximum Alert Level . | . . . Low Security (%) 100 | 100 100 100 Level 1 . | . . . Level 2 . | . . . Level 3 . | . . . Level 4 . | . . . Level 5 . | . . . High Security . | . . . Max Security . | . . . Squads Dispatched . | . . . Investigation . | . . . Extermination . | . . . Reinforcement . | . . . Assault . | . . . Garrison . | . . . Intercept . | . . . Searches Triggered . | . . . Construction Impeded . | . . . Haulers Reinforced . | . . . Active Scanning Responses . | . . . Cargo Convoy Interrupts . | . . . Stealth | -11 -10 -10 --------- Run | Yrd Mat Min Distress Signals . | . . . Communications Jammed . | . . . Distress Signals . | . . . Times Spotted 28 | . 7 21 Peak Tracking Total 13 | . 4 13 Tactical Retreats . | . . . Traps | -11 -10 -10 ------- Run | Yrd Mat Min Traps Triggered . | . . . Indirectly . | . . . Trap Hack Attempts . | . . . Triggered . | . . . Disarmed . | . . . Reprogrammed . | . . . Reused . | . . . Traps Extracted . | . . . Installed . | . . . Triggered . | . . . Machines | -11 -10 -10 ---------- Run | Yrd Mat Min Machines Disabled . | . . . Max in Single Turn . | . . . Machines Repaired . | . . . Machines Dismantled . | . . . Machines Sabotaged . | . . . Overloaded Fab Kills . | . . . Hacking | -11 -10 -10 --------- Run | Yrd Mat Min Machines Accessed . | . . . Terminals . | . . . Fabricators . | . . . Repair Stations . | . . . Recycling Units . | . . . Scanalyzers . | . . . Garrison Access . | . . . Total Hacks . | . . . Successful . | . . . Failed . | . . . Catastrophic . | . . . Database Lockouts . | . . . Manual . | . . . Terminals . | . . . Fabricators . | . . . Repair Stations . | . . . Recycling Units . | . . . Scanalyzers . | . . . Garrison Access . | . . . Terminal Hacks . | . . . Fabricator Hacks . | . . . Repair Station Hacks . | . . . Recycling Unit Hacks . | . . . Scanalyzer . | . . . Garrison Access Hacks . | . . . Unauthorized Hacks . | . . . Terminals . | . . . Fabricators . | . . . Repair Stations . | . . . Recycling Units . | . . . Scanalyzers . | . . . Garrison Access . | . . . Data Cores Recovered . | . . . Used . | . . . Hacking Detections . | . . . Full Trace Events . | . . . Feedback Events . | . . . Feedback Blocked . | . . . Robot Schematics Acquired . | . . . Robots Built . | . . . Authchips . | . . . Time . | . . . Total Robot Build Rating . | . . . Part Schematics Acquired . | . . . Parts Built . | . . . Authchips . | . . . Time . | . . . Total Part Build Rating . | . . . Parts Repaired . | . . . Time . | . . . Parts Recycled . | . . . Recycled Matter . | . . . Retrieved Matter . | . . . Retrieved Components . | . . . Parts Scanalyzed . | . . . Part Schematics Acquired . | . . . Parts Damaged . | . . . Bothacking | -11 -10 -10 ------------ Run | Yrd Mat Min Used RIF Installer . | . . . Robots Hacked . | . . . Non-combat . | . . . Combat . | . . . Robot Hacks Applied . | . . . Relay Couplers Released . | . . . Fabnet Peak Effective % . | . . . Robots Rewired . | . . . Allies Hacked . | . . . Hacks Repelled . | . . . Allies | -11 -10 -10 -------- Run | Yrd Mat Min Total Allies . | . . . Largest Group . | . . . Highest-Rated Group . | . . . Highest-Rated Ally . | . . . Total Orders . | . . . Ally Attacks . | . . . Total Damage . | . . . Kills . | . . . Allies Corrupted . | . . . Allies Melted . | . . . Intel | -11 -10 -10 ------- Run | Yrd Mat Min Robot Analysis Total . | . . . Derelict Logs Recovered 1 | . . 1 Drone Launches . | . . . Drone Recoveries . | . . . Exploration | -11 -10 -10 ------------- Run | Yrd Mat Min Turns Passed 646 | 20 189 437 Spaces Moved 429 | 21 236 172 Core 5 | 5 . . Treads . | . . . Legs 103 | . . 103 Wheels 121 | 16 76 29 Hover . | . . . Flight 200 | . 160 40 Fastest Speed 37 | 50 37 37 Average Speed 83 | 72 52 128 Slowest Speed 190 | 80 80 190 Overloaded Moves . | . . . Propulsion Burnouts . | . . . Robots Hopped . | . . . Cave-ins Triggered . | . . . Exploration Rate (%) 27 | 3 40 39 Regions Visited 2 Branch Regions 1 Pre-discovered Areas . | . . . Known Exits Taken . | . . . Unknown Exits Taken 2 | 1 1 . Scrap Searched . | . . . Spaces Dug . | . . . Terrain Destroyed . | . . . Melee . | . . . Projectile . | . . . AOE . | . . . Terrain Rammed . | . . . Walls Destroyed . | . . . Machines Disabled . | . . . Actions | -11 -10 -10 --------- Run | Yrd Mat Min Total 600 | 23 277 300 Wait 35 | . 2 33 Move 427 | 20 235 172 Hop . | . . . Pick Up 4 | . 3 1 Fast Attach 11 | 3 4 4 Attach 2 | . 1 1 Detach . | . . . Swap 2 | . 1 1 Drop 7 | . 2 5 Fire 112 | . 29 83 Melee . | . . . Ram . | . . . Kick . | . . . Crush . | . . . Escape Stasis . | . . . Rewire . | . . . Trap . | . . . Miscellaneous . | . . . Route ------- -11/Scrapyard -10/Materials -10/Mines History --------- Turn | Location | Event 11 | -11/Scrapyard | Discovered new exit (range 13) 21 | -11/Scrapyard | Entered Materials 99 | -10/Materials | Discovered new exit (range 16) 178 | -10/Materials | Upgraded with Propulsion slot (x1) 178 | -10/Materials | Upgraded with Utility slot (x2) 178 | -10/Materials | Upgraded with Weapon slot (x1) 210 | -10/Materials | Entered Mines 211 | -10/Mines | Assembled infested the area 212 | -10/Mines | Learned Materials emergency access door positions 213 | -10/Mines | Met a Derelict bent on vengeance 301 | -10/Mines | Build established: Mutant 328 | -10/Mines | Core integrity fell below 50% 381 | -10/Mines | Core integrity fell below 20% 418 | -10/Mines | Destroyed 16 combat bots 514 | -10/Mines | A weapon hastily lodged in a ceiling crevice suddenly fell to the ground 647 | -10/Mines | Destroyed by S-10 Pest with Light Assault Rifle Last Messages --------------- effect. 00448_ U-05 Engineer builds a Wall. 00450_ R-06 Scavenger system corrupted by crushing effect. 00453_ Dropped Wheel. 00453_ Acquired Carbon-fiber Leg. 00458_ U-05 Engineer lays Concrete. 00469_ as-68895 destroyed. 00470_ U-05 Engineer lays Concrete. 00471_ Acquired 22 matter. 00471_ U-05 Engineer lays Concrete. 00473_ U-05 Engineer builds a Wall. 00474_ K-01 Serf collects debris. 00486_ Dropped Lgt. Ion Engine. 00514_ A Plasma Flamer has been hastily shoved under some rubble with a note attached: "One is never enough." 00516_ Dropped Lgt. Assault Rifle. 00517_ Acquired Plasma Flamer. 00556_ T-07 Excavator is excavating. Map ----- +----------------------------------------------------+ | ??# %% # ###????????????????????????????? | | ??# #######% # #######?????? ???????????????? | | ??#?????##%##% ##????? ???????????????? | | ????????# ## #????? ???????????????? | | ????????### #% ##### #???? ???????????????? | | ???????????# #???????????? ???????????????? | | ??????????## ###???????????? ???????????????? | | ?????????## % ##????????????? ???????????????? | | ?????????# ##????????????# #??????????????? | | ?????????# #######??????# #??????????????? | | ????????## #??????# #??????????????? | | ????????# #??????# #??????????????? | | ????????# ##### #??????# #??????????????? | | ????????## ## % ##??# ######?# #??????????????? | | ?????????###?## #### % #?# #??????????????? | | ??????????????## = # * #?# #??????????????? | | ???????????????## #### ### #########??????? | | ????????????????## #??# #??????? | | ?????????????????## ##??# ########### #??????? | | ??????????????????#### #???# #?????????# ###????? | | ??????????????????????##???# #?#####??## ##???? | | ????????????????????????#### ### #### #???? | | ?????????????????# ###### ## ##[ #???? | | ?????????????????# ?? r ## #???? | | ?????????????????########s## ##???? | | ????????????????????????#@###### ###????? | | ????????????????????????# #?### ### ##??????? | | ????????????????????????# ### ##?# ##???????? | | ????????????????????????# ## #??# ##????????? | | ???????????????????????? ## ##??# #?????????? | | ????????????????????????##### #???# ####??????? | | ????????????????????????????## ##???# #??????? | | ?????????????????????????????##?????# #??????? | | ????????????????????????????????????#### #??????? | | ???????????????????????????????????????# #??????? | | ???????????????????????????????????????# #??????? | | ???????????????????????????????????????# #??????? | | ???????????????????????????????????????# #??????? | | ???????????????????????????????###????## ##?????? | | ???????????????????????????????# #### ##????? | | ???????????????????????????????# #????? | | ???????????????????????????????# #????? | | ???????????????????????????????###### ##????? | | ???????????????????????????????????# ###????? | | ???????????????????????????????????# # ##???? | | ???????????????????????????????????# #???? | | ???????????????????????????????????## #???? | | ????????????????????????????????????## ### #???? | | ?????????????????????????????????????####?####???? | | ?????????????????????????????????????????????????? | +----------------------------------------------------+ Best States ------------- Heat Dissipation 55 Energy Generation 18 Energy Capacity 150 Matter Stores 300 Matter Capacity 300 Sight Range 17 Robot Scan Range 8 Terrain Scan Density 10 Resistance: KI 20 Resistance: TH 20 Resistance: EX 20 Resistance: EM 20 Resistance: I 20 Resistance: S 20 Resistance: P 20 Evasion (%) 62 Targeting Accuracy 5 Offensive Hacking 10 Item Schematics ----------------- None Robot Schematics ------------------ None Fabricated ------------ Nothing Alien Tech Used ----------------- None Achievements -------------- Exterminator Challenges ------------ None RPGLIKE | -11 -10 -10 --------- Run | Yrd Mat Min Levels Raised . | . . . XP Earned 5100 | 4000 600 500 XP Spent 3975 | . 3975 . Upgrades 17 | . 17 . Propulsion Slot 1 | . 1 . Utility Slot 2 | . 2 . Weapon Slot 1 | . 1 . Core Integrity 1 | . 1 . Heat Dissipation 5 | . 5 . Inventory Capacity 2 | . 2 . Sight Range 1 | . 1 . Sensor Range 4 | . 4 . Protomatter Created 127 | . 34 93 Protomatter Decayed 102 | . 12 90 Game ------ Seed NeutronGuidanceFrame Manual? 0 Play Time 00:11:26 Cumulative 19.2 hours Start 2024.05.31 @ 23:58:48 End 2024.06.01 @ 00:06:35 Sessions 1 Manual Loads 0 Difficulty Adventurer Special Mode Winter2019/RPGLIKE Game No. 28 Rogue 0 Adventurer 28 Explorer 0 Win Type - Total 0 Types 0/0/0/0/0/0/0/0/0 Lore% 9 Gallery% 32 Achievement% 28 Wizard Run 0 Options --------- Layout 1 ASCII 0 Keyboard 0 Movement Mouse Keybinds 0 Fullscreen 2 Font 42/SmallcapsGlow Map View 56x38 Zoom Use 0% Tactical HUD 1 Map Filters NONE Filters NONE Steam 1 RUN: 8b894c18-7ec4-402f-879a-cb86debaa1f5